Cogmind - Beta 14 *** ADVENTURER MODE // 2024.09.06 @ 19:21:44 // Winter2019/RPGLIKE Player: DeepestRoots Result: Destroyed by 0N-S7S(E) with Overtuned Barrage Gun Performance ------------- Evolutions (0) 0 Regions Visited (5) 1000 Robots Destroyed (74) 370 Value Destroyed (1313) 1313 Prototype IDs (28) 560 Alien Tech Used (0) 0 Bonus (300) 300 TOTAL SCORE: 3543 Bonus ------- Registered with UFD 300 Cogmind --------- Core Integrity 0/600 Matter 238/300 Energy 167/250 System Corruption 0% Temperature Cool (86) Movement Rolling (101) Ox1 Location -9/Scraptown Parts ------- > --- POWER (1+1) ------ Ion Engine > --- PROPULSION (4+1) - Wheel Wheel Compact Wheel > --- UTILITY (3+1) ---- Makeshift Kinetic Plating Hacking Suite Rainbow Chip > --- WEAPON (3+1) ----- Heavy Flak Cannon Bore Cannon Improved Proton Missile Launcher Voltaic Drivehammer (+) > --- INVENTORY (5) ---- Experimental Terrain Scanner Plasma Cutter CPS Tube (2) Peak State ------------ > --- POWER ------------ Ion Engine > --- PROPULSION ------- Wheel Wheel Compact Wheel > --- UTILITY ---------- Makeshift Kinetic Plating Hacking Suite Rainbow Chip > --- WEAPON ----------- Heavy Flak Cannon Bore Cannon Improved Proton Missile Launcher Voltaic Drivehammer > --- INVENTORY -------- Experimental Terrain Scanner Plasma Cutter CPS Tube [Rating: 50] Favorites ----------- Power Ion Engine Engine Ion Engine Propulsion Wheel Leg Aluminum Leg Wheel Wheel Utility Sensor Array Device Sensor Array Processor Signal Interpreter Hackware Hacking Suite Protection Makeshift Kinetic Plating Weapon Bore Cannon Energy Gun Medium Laser Energy Cannon Particle Cannon Ballistic Gun Subdweller Machine Gun Ballistic Cannon Bore Cannon Launcher Improved Proton Missile Launcher Special Weapon Voltaic Drivehammer Build | -11 -10 -10 -10 -9 -9 ------- Run | Yrd Mat Min Sub Rec Scr Slots Evolved 7 | 3 . . . . 4 Power . | . . . . . . Propulsion 3 | 1 . . . . 2 Utility 2 | 1 . . . . 1 Weapon 2 | 1 . . . . 1 Parts Attached 50 | 7 11 4 9 4 15 Power 4 | 2 . . . 1 1 Engine 4 | 2 . . . 1 1 Core . | . . . . . . Reactor . | . . . . . . Propulsion 10 | 3 . . . . 7 Treads . | . . . . . . Leg 1 | 1 . . . . . Wheel 9 | 2 . . . . 7 Hover . | . . . . . . Flight . | . . . . . . Utility 7 | . 3 . 1 . 3 Device 2 | . 2 . . . . Storage . | . . . . . . Processor 2 | . 1 . . . 1 Hackware 1 | . . . . . 1 Protection 2 | . . . 1 . 1 Artifact . | . . . . . . Weapon 29 | 2 8 4 8 3 4 Energy Gun 4 | 1 1 . 2 . . Energy Cannon 2 | . . . . 2 . Ballistic Gun 7 | 1 3 1 2 . . Ballistic Cannon 6 | . . 2 2 . 2 Launcher 9 | . 4 1 2 1 1 Special Weapon 1 | . . . . . 1 Impact Weapon . | . . . . . . Slashing Weapon . | . . . . . . Piercing Weapon . | . . . . . . Special Melee Weapon . | . . . . . . Unidentified Prototypes . | . . . . . . Parts Lost 1 | . . . . . 1 Power . | . . . . . . Propulsion . | . . . . . . Utility 1 | . . . . . 1 Weapon . | . . . . . . Highest Loss Streak 1 | . . . . . 1 To Critical Strikes . | . . . . . . Average Slot Usage (%) 98 | . 95 100 100 100 97 Engine 13 | . 14 14 14 14 12 Wheel 28 | . 28 28 28 28 30 Device 12 | . 10 14 14 14 11 Processor 3 | . 13 14 2 . . Protection 10 | . . . 11 14 15 Energy Gun 4 | . 14 14 5 . . Energy Cannon 4 | . . . . 13 7 Ballistic Gun 3 | . 9 3 8 . . Ballistic Cannon 12 | . . 10 13 14 14 Launcher 2 | . 4 . . . 4 Peak Build Rating 50 | 5 8 11 16 17 50 Average Rating 16 | 3 7 10 15 16 21 On Entrance 9 | . 5 8 11 16 17 Naked Turns . | . . . . . . Heaviest Build 47 | 7 9 17 26 28 47 Greatest Support 46 | 20 20 20 20 20 46 Greatest Overweight (x) 1 | . . . 1 1 1 Average Overweight (x) . | . . . . 1 . Largest Inventory Capacity 5 | 4 4 4 4 4 5 Average Capacity 4 | 4 4 4 4 4 4 Most Carried 5 | 3 4 4 4 4 5 Average Carried 3 | 1 3 4 3 3 3 Final Capacity 5 | 4 4 4 4 4 5 Final Carried 4 | 2 4 4 4 4 3 Class Distribution -------------------- 88% | Mutant 7% | Tank 3% | Hacker-Tank Dominant Class ---------------- Mutant | -10/Materials Mutant | -10/Mines Mutant | -10/Subcaves Mutant | -9/Recycling Mutant | -9/Scraptown Resources | -11 -10 -10 -10 -9 -9 ----------- Run | Yrd Mat Min Sub Rec Scr Matter Collected 1569 | 285 310 221 412 251 90 Remotely . | . . . . . . Salvage Created 1694 | 224 503 344 196 427 . Parts 124 | 21 44 24 14 21 . Haulers Intercepted 2 | . 2 . . . . Recyclers Shooed 5 | . . . . 5 . Parts Field Recycled . | . . . . . . Retrieved Matter . | . . . . . . Parts Self-Destructed 4 | . . . 4 . . Prevented . | . . . . . . Kills | -11 -10 -10 -10 -9 -9 ------- Run | Yrd Mat Min Sub Rec Scr Combat Hostiles Destroyed 42 | . 14 12 13 3 . Guns 13 | . 8 3 2 . . Cannons 10 | . . 4 4 2 . AOE 18 | . 6 5 7 . . Classes Destroyed 11 | 3 5 . 2 1 . Worker 6 | 2 4 . . . . Builder 6 | . 3 2 . 1 . Tunneler 5 | 5 . . . . . Hauler 2 | . 2 . . . . Recycler 8 | 1 1 1 . 5 . Turret 2 | . . . 2 . . Watcher 3 | . 3 . . . . Swarmer 22 | . 9 6 7 . . Grunt 11 | . 5 6 . . . Sentry 3 | . . . . 3 . Subdweller 6 | . . . 6 . . Best Kill Streak 8 | 6 8 5 6 4 . Combat Bots Only 6 | . 6 3 5 1 . Max Kills in Single Turn 3 | 1 3 2 2 1 . Gunslinging . | . . . . . . Exploded 3 | . 3 2 2 . . Melee . | . . . . . . Uniques/NPCs Destroyed . | . . . . . . Combat | -11 -10 -10 -10 -9 -9 -------- Run | Yrd Mat Min Sub Rec Scr Hostile Shots Fired 197 | . 28 41 22 . 106 Missed 65 | . 9 13 7 . 36 Damage Taken 1630 | . 157 283 219 60 911 Core 1189 | . 137 226 161 60 605 Absorbed by Shields . | . . . . . . Redirected to Core 916 | . 68 178 143 . 527 Ignored by Resistances 536 | . 52 87 51 . 346 Regen/Repaired (Parts) 403 | . 8 . . . 395 Core Remaining (%) 100 | 100 . . . . . Volleys Fired 158 | 15 47 34 39 22 1 Largest 2 | 2 2 2 2 2 1 Hottest 125 | 60 70 107 107 125 57 Shots Fired 266 | 30 76 64 53 42 1 Gun 146 | 30 59 42 15 . . Cannon 86 | . . 18 25 42 1 Launcher 34 | . 17 4 13 . . Special . | . . . . . . Kinetic 125 | 15 30 30 27 22 1 Thermal 107 | 15 29 30 13 20 . Explosive 34 | . 17 4 13 . . Electromagnetic . | . . . . . . Robot Hit Streak 27 | 7 16 27 17 5 . Robot Miss Streak 4 | 1 2 4 1 4 . Penetration Max 1 | . . . 1 1 . Secondary Targets 2 | . 1 1 . . . Max Gunslinging Chain 1 | . 1 1 . . . Shots Hit Robots 162 | 20 43 50 27 22 . Core Hits 101 | 11 36 22 24 8 . Critical Kills 14 | . . 6 2 6 . Critical Parts Destroyed 12 | . . 4 2 6 . Critical Strikes 37 | . 2 11 12 12 . Burn 4 | . 2 1 1 . . Meltdown 1 | . . . . 1 . Destroy 32 | . . 10 11 11 . Melee Attacks . | . . . . . . Impact . | . . . . . . Slashing . | . . . . . . Piercing . | . . . . . . Sneak Attacks . | . . . . . . Combat Hostiles . | . . . . . . Follow-up Attacks . | . . . . . . Damage Inflicted 4547 | 210 1381 1170 1178 608 . Guns 1256 | 210 453 406 187 . . Cannons 1302 | . . 383 311 608 . Explosions 1989 | . 928 381 680 . . Melee . | . . . . . . Ramming . | . . . . . . Kinetic 1434 | 76 129 471 359 399 . Thermal 1124 | 134 324 318 139 209 . Explosive 1989 | . 928 381 680 . . Electromagnetic . | . . . . . . Impact . | . . . . . . Slashing . | . . . . . . Piercing . | . . . . . . Highest Corruption . | . . . . . . Average Corruption . | . . . . . . Corruption Purged . | . . . . . . Corruption Blocked . | . . . . . . Overload Shots . | . . . . . . Overflow Damage 127 | . 45 59 10 13 . Projectiles 26 | . . 13 . 13 . Explosions 101 | . 45 46 10 . . Melee . | . . . . . . Knockbacks 10 | . . 1 3 6 . Impact . | . . . . . . Kinetic 8 | . . 1 3 4 . Secondary 2 | . . . . 2 . Self-Inflicted Damage 62 | . 26 36 . . . Shots 2 | . 1 1 . . . Rammed . | . . . . . . Targets Rammed . | . . . . . . Kicked . | . . . . . . Crushed . | . . . . . . Highest Temperature 612 | 40 140 355 30 612 89 Average Temperature 110 | 14 38 132 15 166 46 Received Heat Transfer 611 | . 54 153 30 . 374 Effects 16 | . . 2 . 14 . Shutdowns 2 | . . . . 2 . Energy Bleed 2 | . . 2 . . . Interference 2 | . . . . 2 . Matter Decay 1 | . . . . 1 . Damage (minor) 3 | . . . . 3 . Damage (major) 5 | . . . . 5 . Damage (core) 1 | . . . . 1 . Siege Activations . | . . . . . . Robots Corrupted . | . . . . . . Combat Hostiles . | . . . . . . Parts Fried . | . . . . . . Impact Corruptions . | . . . . . . Robots Melted 1 | . . . . 1 . Combat Hostiles 1 | . . . . 1 . Parts Melted 6 | . . 1 2 3 . Heat Transferred 3186 | 300 1073 962 481 370 . Parts Sabotaged . | . . . . . . Parts Stolen 1 | . . . . . 1 Parts Stripped . | . . . . . . Power Chain Reactions . | . . . . . . Alert | -11 -10 -10 -10 -9 -9 ------- Run | Yrd Mat Min Sub Rec Scr Peak Influence 492 | 40 492 240 . 135 . Initial 107 | . 22 107 . . . Average 137 | 13 220 132 . 70 . Maximum Alert Level 2 | . 2 1 . . . Low Security (%) 75 | 100 49 77 . 100 . Level 1 21 | . 43 22 . . . Level 2 2 | . 7 . . . . Level 3 . | . . . . . . Level 4 . | . . . . . . Level 5 . | . . . . . . High Security . | . . . . . . Max Security . | . . . . . . Squads Dispatched 2 | . 2 . . . . Investigation 2 | . 2 . . . . Extermination . | . . . . . . Reinforcement . | . . . . . . Assault . | . . . . . . Garrison . | . . . . . . Intercept . | . . . . . . Searches Triggered . | . . . . . . Construction Impeded . | . . . . . . Haulers Reinforced . | . . . . . . Active Scanning Responses . | . . . . . . Cargo Convoy Interrupts . | . . . . . . Stealth | -11 -10 -10 -10 -9 -9 --------- Run | Yrd Mat Min Sub Rec Scr Distress Signals 1 | . 1 . . . . Communications Jammed . | . . . . . . Distress Signals . | . . . . . . Times Spotted 63 | . 19 10 15 1 18 Peak Tracking Total 17 | . 7 3 6 . 17 Tactical Retreats 3 | . 1 . 2 . . Traps | -11 -10 -10 -10 -9 -9 ------- Run | Yrd Mat Min Sub Rec Scr Traps Triggered 2 | . . . 2 . . Indirectly . | . . . . . . Trap Hack Attempts . | . . . . . . Triggered . | . . . . . . Disarmed . | . . . . . . Reprogrammed . | . . . . . . Reused . | . . . . . . Traps Extracted . | . . . . . . Installed . | . . . . . . Triggered . | . . . . . . Most Traps Carried 1 | . . . 1 . . Machines | -11 -10 -10 -10 -9 -9 ---------- Run | Yrd Mat Min Sub Rec Scr Machines Disabled 15 | . 9 . 4 1 1 Max in Single Turn 3 | . 3 . 2 1 1 Machines Repaired . | . . . . . . Machines Dismantled . | . . . . . . Machines Sabotaged . | . . . . . . Overloaded Fab Kills . | . . . . . . Hacking | -11 -10 -10 -10 -9 -9 --------- Run | Yrd Mat Min Sub Rec Scr Machines Accessed 25 | . 10 . 3 8 4 Terminals 11 | . 7 . . 4 . Fabricators . | . . . . . . Repair Stations 1 | . 1 . . . . Recycling Units 6 | . 2 . . 4 . Scanalyzers . | . . . . . . Garrison Access . | . . . . . . Total Hacks 67 | . 27 . 11 17 12 Successful 57 | . 21 . 11 13 12 Failed 9 | . 6 . . 3 . Catastrophic . | . . . . . . Database Lockouts 1 | . . . . 1 . Manual 38 | . 20 . . 18 . Terminals 36 | . 23 . . 13 . Fabricators . | . . . . . . Repair Stations 2 | . 2 . . . . Recycling Units 6 | . 2 . . 4 . Scanalyzers . | . . . . . . Garrison Access . | . . . . . . Terminal Hacks 36 | . 10 . 11 3 12 Record 16 | . . . 9 . 7 Robot Analysis 9 | . 4 . . 1 4 Prototype ID Bank 3 | . 2 . . 1 . Open Door 1 | . . . 1 . . Terminal Index 1 | . . . . 1 . Locate Traps 3 | . 3 . . . . Registered Prototypes 1 | . 1 . . . . Derelict Proto ID Bank 2 | . . . 1 . 1 Fabricator Hacks . | . . . . . . Repair Station Hacks 2 | . 2 . . . . Scan Component 1 | . 1 . . . . Repair 1 | . 1 . . . . Recycling Unit Hacks . | . . . . . . Scanalyzer . | . . . . . . Garrison Access Hacks . | . . . . . . Unauthorized Hacks 19 | . 9 . . 10 . Terminals 13 | . 7 . . 6 . Botnet 4 | . 2 . . 2 . Skim 8 | . 5 . . 3 . Search 1 | . . . . 1 . Fabricators . | . . . . . . Repair Stations . | . . . . . . Recycling Units 6 | . 2 . . 4 . Tunnel 6 | . 2 . . 4 . Scanalyzers . | . . . . . . Garrison Access . | . . . . . . Data Cores Recovered . | . . . . . . Used . | . . . . . . Hacking Detections 11 | . 7 . . 4 . Full Trace Events . | . . . . . . Feedback Events . | . . . . . . Feedback Blocked . | . . . . . . Robot Schematics Acquired . | . . . . . . Robots Built . | . . . . . . Authchips . | . . . . . . Time . | . . . . . . Total Robot Build Rating . | . . . . . . Part Schematics Acquired . | . . . . . . Parts Built . | . . . . . . Authchips . | . . . . . . Time . | . . . . . . Total Part Build Rating . | . . . . . . Parts Repaired 1 | . 1 . . . . Time 13 | . 13 . . . . Parts Recycled . | . . . . . . Recycled Matter . | . . . . . . Retrieved Matter . | . . . . . . Retrieved Components . | . . . . . . Parts Scanalyzed . | . . . . . . Part Schematics Acquired . | . . . . . . Parts Damaged . | . . . . . . Bothacking | -11 -10 -10 -10 -9 -9 ------------ Run | Yrd Mat Min Sub Rec Scr Used RIF Installer . | . . . . . . Robots Hacked . | . . . . . . Non-combat . | . . . . . . Combat . | . . . . . . Robot Hacks Applied . | . . . . . . Relay Couplers Released . | . . . . . . Fabnet Peak Effective % . | . . . . . . Robots Rewired . | . . . . . . Allies Hacked . | . . . . . . Hacks Repelled . | . . . . . . Allies | -11 -10 -10 -10 -9 -9 -------- Run | Yrd Mat Min Sub Rec Scr Total Allies 4 | . . 4 . . . Largest Group 3 | . . 3 3 . . Highest-Rated Group 40 | . . 40 40 . . Highest-Rated Ally 31 | . . 31 16 . . Total Orders . | . . . . . . Ally Attacks 22 | . . . 22 . . Total Damage 268 | . . . 268 . . Kills . | . . . . . . Allies Corrupted . | . . . . . . Allies Melted . | . . . . . . Intel | -11 -10 -10 -10 -9 -9 ------- Run | Yrd Mat Min Sub Rec Scr Robot Analysis Total 9 | . 4 . . 1 4 Derelict Logs Recovered 7 | . . 3 2 . 2 Drone Launches . | . . . . . . Drone Recoveries . | . . . . . . Exploration | -11 -10 -10 -10 -9 -9 ------------- Run | Yrd Mat Min Sub Rec Scr Turns Passed 8714 | 120 981 1156 2276 884 3297 Spaces Moved 8460 | 83 979 1040 2206 706 3446 Core 12 | 12 . . . . . Treads . | . . . . . . Legs 4 | 4 . . . . . Wheels 8444 | 67 979 1040 2206 706 3446 Hover . | . . . . . . Flight . | . . . . . . Fastest Speed 50 | 50 80 80 80 95 82 Average Speed 90 | 77 80 80 93 95 94 Slowest Speed 120 | 120 80 80 95 95 100 Overloaded Moves . | . . . . . . Propulsion Burnouts . | . . . . . . Robots Hopped . | . . . . . . Cave-ins Triggered . | . . . . . . Exploration Rate (%) 81 | 4 98 99 97 98 92 Regions Visited 5 Branch Regions 4 Pre-discovered Areas 12 | . 4 1 2 4 1 Known Exits Taken 4 | . 1 1 1 1 . Unknown Exits Taken 1 | 1 . . . . . Scrap Searched 19 | . . 1 8 . 10 Spaces Dug 29 | . 18 . 11 . . Terrain Destroyed 209 | . 95 41 58 15 . Melee . | . . . . . . Projectile 29 | . . 8 6 15 . AOE 180 | . 95 33 52 . . Terrain Rammed . | . . . . . . Walls Destroyed . | . . . . . . Machines Disabled . | . . . . . . Actions | -11 -10 -10 -10 -9 -9 --------- Run | Yrd Mat Min Sub Rec Scr Total 9268 | 108 1101 1302 2376 877 3504 Wait 504 | . 55 208 88 135 18 Move 8455 | 82 978 1039 2205 705 3446 Hop . | . . . . . . Pick Up 24 | 2 3 1 10 1 7 Fast Attach 24 | 6 3 1 3 . 11 Attach 4 | . . . 1 . 3 Detach 1 | . . . . . 1 Swap 22 | 1 8 3 5 4 1 Drop 33 | 2 1 2 13 2 13 Fire 158 | 15 47 34 39 22 1 Melee . | . . . . . . Ram . | . . . . . . Kick . | . . . . . . Crush . | . . . . . . Escape Stasis . | . . . . . . Rewire . | . . . . . . Trap . | . . . . . . Miscellaneous 43 | . 6 14 12 8 3 Route ------- -11/Scrapyard -10/Materials (discovered 6 exits: *Mat x3 / *Min x2 / *Sub) -10/Mines (discovered 4 exits: *Mat x2 / *Exi / *Sub) -10/Subcaves (discovered 3 exits: *Mat x2 / *Rec) -9/Recycling (discovered 2 exits: [*Fac] / *Scr) -9/Scraptown (discovered 2 exits: [*Fac x2]) History --------- Turn | Location | Event 1 | -11/Scrapyard | Upgraded with Propulsion slot (x1) 1 | -11/Scrapyard | Upgraded with Utility slot (x1) 1 | -11/Scrapyard | Upgraded with Weapon slot (x1) 2 | -11/Scrapyard | Met Revision 17 9 | -11/Scrapyard | Discovered new exit (range 16) 121 | -11/Scrapyard | Entered Materials 228 | -10/Materials | Discovered new exit (range 15) 299 | -10/Materials | Discovered new exit (range 8) 306 | -10/Materials | Build established: Mutant 387 | -10/Materials | Identified exit to Mines 463 | -10/Materials | Discovered new exit (range 15) 478 | -10/Materials | Learned Storage security intel 508 | -10/Materials | Learned location of 2 exits from Mines 529 | -10/Materials | Learned location of 2 exits from Subcaves 544 | -10/Materials | Learned 4 Recycling zone layouts 556 | -10/Materials | Learned location of 1 exit from Recycling 594 | -10/Materials | Discovered new exit (range 15) 610 | -10/Materials | Learned location of Storage (-9) 623 | -10/Materials | Identified exit to Materials 655 | -10/Materials | Learned location of Recycling (-9) 660 | -10/Materials | Discovered new exit (range 8) 748 | -10/Materials | Reached level 2 941 | -10/Materials | Repaired Sensor Array 1102 | -10/Materials | Entered Mines 1104 | -10/Mines | Identified exit to Exiles 1104 | -10/Mines | Identified exit to Subcaves 1104 | -10/Mines | Reached level 3 1157 | -10/Mines | Deemed a non-threat by the Exiles lab entrance 1180 | -10/Mines | Received a Mining Laser from a helpful Derelict 1312 | -10/Mines | Learned Materials emergency access door positions 1366 | -10/Mines | A weapon hastily lodged in a ceiling crevice suddenly fell to the ground 1380 | -10/Mines | Learned Materials emergency access door positions 1411 | -10/Mines | YI-UF0 nonchalantly dropped a Grenade Launcher on the ground 1431 | -10/Mines | Received a Rocket Launcher from a helpful Derelict 1748 | -10/Mines | Excavation squad dispatched 1748 | -10/Mines | A large section of the Mines collapsed 2157 | -10/Mines | Assisted by bots powering up and referring to "LRC-V3" 2258 | -10/Mines | Entered Subcaves 2258 | -10/Subcaves | Accompanied by 3 allies 2259 | -10/Subcaves | Identified exit to Materials 2260 | -10/Subcaves | Identified exit to Recycling 2260 | -10/Subcaves | Reached level 4 2293 | -10/Subcaves | A Subdweller sparked back to life 2293 | -10/Subcaves | A Subdweller sparked back to life 2293 | -10/Subcaves | A Subdweller sparked back to life 2341 | -10/Subcaves | Lost 3 allies 2348 | -10/Subcaves | Found Prototype Processor 2391 | -10/Subcaves | Learned location of Zion (-7) 2391 | -10/Subcaves | Met a Zionite searching for "candidates" 2437 | -10/Subcaves | Learned Materials stockpile data 2756 | -10/Subcaves | Shifting Twisted Machinery released Ripper 2757 | -10/Subcaves | Shifting Twisted Machinery released Sub. Beam Cannon 2910 | -10/Subcaves | Visited 4L-MR0's lab 2914 | -10/Subcaves | Identified Rainbow Chip 3400 | -10/Subcaves | Shifting Twisted Machinery released Sub. Machine Gun 3401 | -10/Subcaves | Shifting Twisted Machinery released Piercing Trap 3494 | -10/Subcaves | Shifting Twisted Machinery released Sub. Machine Gun 3496 | -10/Subcaves | Shifting Twisted Machinery released Sub. Laser 3738 | -10/Subcaves | Reached level 5 4534 | -10/Subcaves | Entered Recycling 4535 | -9/Recycling | Identified exit to Scraptown 4615 | -9/Recycling | Reached level 6 5050 | -9/Recycling | Discovered new exit (range 6) 5395 | -9/Recycling | Scanned before Scraplab entrance 5408 | -9/Recycling | Entered Scraplab 5418 | -9/Recycling | Entered Scraptown 5559 | -9/Scraptown | Discovered new exit (range 11) 5580 | -9/Scraptown | Scanned Subdweller tech in exchange for log data 5584 | -9/Scraptown | Learned location of Extension (-6) 5671 | -9/Scraptown | Visited Red Mages 5722 | -9/Scraptown | Visited SPCMW 5760 | -9/Scraptown | Visited Bundlers 6105 | -9/Scraptown | Visited UFD Registry 6105 | -9/Scraptown | Registered with UFD as "Gaussbank" 6214 | -9/Scraptown | Guru changed UFD alias to "Deathmachine" 6260 | -9/Scraptown | Visited IN-MT5's Study 6279 | -9/Scraptown | Visited CR-KLE's Repair Center 6314 | -9/Scraptown | Visited The Evicted 6368 | -9/Scraptown | Visited Infowarlord's Domain 6385 | -9/Scraptown | Visited Junk Repository 6415 | -9/Scraptown | Visited Science Guys 6580 | -9/Scraptown | Visited Research Penetration Think Tank 6608 | -9/Scraptown | Visited Scrap Suit Storage 6638 | -9/Scraptown | Visited Analyses Database 6672 | -9/Scraptown | Visited DA-N13 Charitable Foundation 6676 | -9/Scraptown | Found DCF Scrap (27 items) 6704 | -9/Scraptown | Visited Chapter 10 6732 | -9/Scraptown | Visited Abandonware Association 6747 | -9/Scraptown | Learned abandonware demo "POISON.EXE" 6747 | -9/Scraptown | Learned abandonware demo "MELTYB.EXE" 6948 | -9/Scraptown | Discovered new exit (range 5) 7326 | -9/Scraptown | Upgraded with Propulsion slot (x1) 7326 | -9/Scraptown | Upgraded with Utility slot (x1) 7326 | -9/Scraptown | Upgraded with Weapon slot (x1) 7404 | -9/Scraptown | Found Exp. Terrain Scanner 7433 | -9/Scraptown | Visited Awakened 7847 | -9/Scraptown | Upgraded with Propulsion slot (x1) 8132 | -9/Scraptown | Build established: Tank 8535 | -9/Scraptown | CR-KLE repaired 10 parts 8674 | -9/Scraptown | Attacked by Scraptown defenders 8677 | -9/Scraptown | Found Voltaic Drivehammer 8704 | -9/Scraptown | Build established: Hacker-Tank 8706 | -9/Scraptown | Core integrity fell below 50% 8713 | -9/Scraptown | Core integrity fell below 20% 8714 | -9/Scraptown | Attached Rainbow Chip, gained temporary slots: Power, Propulsion, Utility, Weapon 8715 | -9/Scraptown | Destroyed by 0N-S7S(E) with Overtuned Barrage Gun Last Messages --------------- 08694_ Critical hit (Burn: +50). 08696_ Critical hit (Destroy). 08697_ ZC-35A(E) suffers critical hit (Burn). 08699_ Machine disabled. 08700_ JR-U2A(E) destroyed. 08704_ Penetrated by Bolt. 08704_ Bolt penetrates HQ-QWB(j). 08705_ 2Q-1AF(r) follow-up attacks with Ripteeth. 08705_ Penetrated by Slug. 08707_ Penetrated by Bolt. 08707_ Machine disabled. 08709_ Critical hit (Burn: +50). 08709_ Penetrated by Bolt. 08713_ Penetrated by Slug. 08713_ Med. Armor Plating destroyed. 08714_ Wheel ripped off. 08714_ Core temporarily expanded with Power slot. 08714_ Core temporarily expanded with Propulsion slot. 08714_ Core temporarily expanded with Utility slot. 08714_ Core temporarily expanded with Weapon slot. Map ----- +----------------------------------------------------+ | ?????????????????????????????????????????????????? | | ?????????????????????????????????????????????????? | | ?????????????????????????????????????????????????? | | ?????????????????????????????????????????????????? | | ?????????????????????????????????????????????????? | | ?????????????????????????????????#####???????????? | | ?????????????????????????????????#"""#???????????? | | ??###################???####?????#" "#???????????? | | ?#"""##"""##""|##"""#??## ##????# < #???????????? | | ?#"" ##"" ##"" ##!!"#### ###### ##??????????? | | ?#"" #??????????? | | ?# #??????????? | | ?####################### ###########??????????? | | ???????????????????????## ##????????????????????? | | ????????????????????????# #?????????????????????? | | ??############??????????# #?????????????????????? | | ???""""""""""#??????????# #?????????????????????? | | ???## " #??????????# #?????????????????????? | | ???# ""#??????????# #"?"""?"?"????????????? | | ???# ""############ # ? " ? ?????????????? | | ???# """"##**=## ## # ? " ??????????????? | | ???# " ""##==]## ]## # " "??????????????? | | ???# """"##*%|]* % ## # " " "??????????????? | | ???# ""##![/!! ##EE# "??????????????? | | ??### "##=*[!=* ##EE# ???????????????? | | ??# ## ==!= ##@j#""""?????????????????? | | ??##### ########### #####r ## #??????????????????? | | ####### ########### #####x ## ##?????????????????? | | """"""" """"""""""" """"p " "#########?????????? | | "## """"#?????????? | | "## " "#?????????? | | j "## X"#?????????? | | "## "#?????????? | | j ""#?????????? | | """"""""""""""""""""""""" "## " "#?????????? | | """"""""""""""""""""""""" "## """"#?????????? | | ##### ################"" ## """"#?????????? | | ??? ?????????????#""E "##########????????? | | ??? ????????????#"" x "## #"""""#????????? | | ?? "" "" ????????????#"" "## !! ! #????????? | | ??"" ""??????????###" h "## ##"#?????? | | " ?????######## #"" "## X" #?????? | | "" ?? #?????? | | "" ?? ## #?????? | | " ?????######## #"" ## !! !! !#?????? | | "" ""??????????###"" "## #"""""#""#?????? | | ? "" "" ????????????#"" !* #############?????? | | ??? ????????????#""[%= "##########????????? | | ??? ?????????????#"" [ ## " """"#????????? | | ##### ################"" ## ""#????????? | +----------------------------------------------------+ Best States ------------- Heat Dissipation 25 Energy Generation 12 Energy Capacity 265 Matter Stores 300 Matter Capacity 300 Sight Range 16 Robot Scan Range 14 Terrain Scan Density 10 Armor Coverage 325 Resistance: KI 30 Resistance: TH 20 Resistance: EX 20 Resistance: EM 20 Resistance: I 20 Resistance: S 20 Resistance: P 20 Evasion (%) 45 Offensive Hacking 20 Item Schematics ----------------- None Robot Schematics ------------------ None Fabricated ------------ Nothing Alien Tech Used ----------------- None Achievements -------------- None Challenges ------------ None RPGLIKE | -11 -10 -10 -10 -9 -9 --------- Run | Yrd Mat Min Sub Rec Scr Levels Raised 5 | . 1 1 2 1 . XP Earned 12946 | 4000 2610 1855 1826 2005 650 XP Spent 8750 | 4000 . . . . 4750 Upgrades 12 | 7 . . . . 5 Propulsion Slot 3 | 1 . . . . 2 Utility Slot 2 | 1 . . . . 1 Weapon Slot 2 | 1 . . . . 1 Inventory Capacity 5 | 4 . . . . 1 Protomatter Created 312 | . 45 82 85 100 . Integrity Restored 784 | . 135 231 213 145 60 Core 584 | . 135 192 170 27 60 Parts 200 | . . 39 43 118 . Protomatter Decayed 105 | . . . 75 1 29 Game ------ Seed BoreWeldingFlail Manual? 0 Play Time 01:21:43 Cumulative 578.9 hours Start 2024.09.06 @ 17:49:55 End 2024.09.06 @ 19:21:44 Sessions 1 Manual Loads 0 Difficulty Adventurer Special Mode Winter2019/RPGLIKE Game No. 46 Rogue 9 Adventurer 23 Explorer 14 Win Type - Total 33 Types 19/2/8/1/1/2/0/0/0 Lore% 77 Gallery% 88 Achievement% 77 Wizard Run 0 Options --------- Layout 0 ASCII 0 Keyboard 0 Movement Mouse Keybinds 0 Fullscreen 2 Font 36/Terminus++ Map View 76x50 Zoom Use 0% Tactical HUD 1 Map Filters NONE Filters NONE Steam 0 RUN: 4d3fa1e4-1fe7-4d6a-a473-884bd84584fa